bitfinex-derivatives/quotes_BTCF0:USTF0_20260119
["timestamp","ask_amount","ask_price","bid_price","bid_amount"]
[1768815513902,0.0094574,93030.0,93016.0,0.010756]
[1768815514302,0.0094574,93030.0,93011.0,0.10633493]
[1768815514512,0.0094574,93030.0,93019.0,0.010756]
[1768815515110,0.0094574,93030.0,93021.0,0.010756]
[1768815515313,0.0094574,93033.0,93021.0,0.010756]
[1768815516606,0.0094574,93033.0,93014.0,0.00953493]
[1768815517713,0.0094574,93033.0,93021.0,0.010756]
[1768815522718,0.0094574,93033.0,93023.0,0.010755]
[1768815522914,0.00016118,93044.0,93031.0,0.010754]
[1768815523820,0.00016118,93044.0,93033.0,0.010754]
[1768815524409,0.01014191,93044.0,93030.0,0.010755]
[1768815524817,0.00998073,93043.0,93030.0,0.010755]
[1768815526518,0.00998073,93043.0,93032.0,0.010754]
[1768815526920,0.00252565,93044.0,93032.0,0.010754]
[1768815527715,0.01250638,93044.0,93028.0,0.010755]
[1768815527915,0.01250638,93044.0,93030.0,0.010755]
[1768815528116,0.01250638,93044.0,93032.0,0.010754]
[1768815530726,0.01250638,93044.0,93029.0,0.010755]
[1768815531024,0.00998073,93043.0,93029.0,0.010755]
[1768815532524,0.02073373,93042.0,93026.0,0.010755]
[1768815534425,0.00998073,93042.0,93030.0,0.010755]
[1768815535116,0.00998073,93042.0,93032.0,0.010754]
[1768815535326,0.00252565,93044.0,93032.0,0.010754]
[1768815535531,0.00252565,93044.0,93024.0,0.00931827]
[1768815535532,0.00252565,93044.0,93034.0,0.010754]
[1768815535719,0.00252565,93044.0,93031.0,0.010754]
[1768815536220,0.01160952,93044.0,93031.0,0.010754]
[1768815536421,0.00908387,93043.0,93031.0,0.010754]
[1768815537626,0.00908387,93043.0,93028.0,0.010755]
[1768815537829,0.00908387,93043.0,93030.0,0.010755]
[1768815538029,0.00908387,93043.0,93032.0,0.010754]
[1768815538930,0.00252565,93044.0,93032.0,0.010754]
[1768815539431,0.00252565,93044.0,93024.0,0.00931827]
[1768815540322,0.00252565,93044.0,93034.0,0.010754]
[1768815540625,0.00252565,93044.0,93036.0,0.010754]
[1768815540828,0.00252565,93044.0,93035.0,0.010754]
[1768815541130,0.00252565,93044.0,93037.0,0.010754]
[1768815541329,0.010752,93053.0,93037.0,0.010754]
[1768815541525,0.02327363,93052.0,93037.0,0.010754]
[1768815541828,0.02327363,93051.0,93037.0,0.010754]
[1768815542629,0.02327363,93051.0,93039.0,0.010754]
[1768815542931,0.02327363,93051.0,93037.0,0.02050201]
[1768815543122,0.02327363,93050.0,93037.0,0.02050201]
[1768815543321,0.01983587,93054.0,93037.0,0.00974801]
[1768815543522,0.02327391,93053.0,93037.0,0.00974801]
[1768815543727,0.00908387,93052.0,93040.0,0.010753]
[1768815543927,0.02327391,93051.0,93037.0,0.00974801]
[1768815544128,0.0605246,93063.0,93033.0,0.0968]
[1768815544129,0.00908387,93060.0,93043.0,0.010753]
[1768815544527,0.00908387,93060.0,93045.0,0.010753]
[1768815545226,0.01983587,93056.0,93039.0,0.010754]
[1768815545532,0.00908387,93055.0,93039.0,0.010754]
[1768815546424,0.00908387,93054.0,93039.0,0.010754]
[1768815546933,0.010752,93057.0,93041.0,0.010753]
[1768815547232,0.00908387,93057.0,93043.0,0.010753]
[1768815549336,0.010752,93056.0,93040.0,0.010753]
[1768815551339,0.00908387,93057.0,93037.0,0.010754]
[1768815551539,0.00908387,93054.0,93037.0,0.010754]
[1768815552441,0.010752,93052.0,93037.0,0.010754]
[1768815552625,0.00908387,93051.0,93037.0,0.010754]
[1768815553539,0.00908387,93050.0,93030.0,0.00990919]
[1768815553745,0.00908387,93047.0,93031.0,0.0968]
[1768815554744,0.010752,93055.0,93031.0,0.0968]
[1768815554745,0.00908387,93045.0,93031.0,0.0968]
[1768815554940,0.00908387,93044.0,93032.0,0.010754]
[1768815555245,0.00908387,93044.0,93034.0,0.010754]
[1768815555441,0.00908387,93047.0,93034.0,0.010754]
[1768815560648,0.010753,93046.0,93031.0,0.0968]
[1768815561041,0.010753,93049.0,93035.0,0.010754]
[1768815561638,0.00908387,93051.0,93035.0,0.010754]
[1768815562250,0.00908387,93051.0,93037.0,0.010754]
[1768815563652,0.010752,93050.0,93033.0,0.010754]
[1768815563840,0.010752,93050.0,93035.0,0.010754]
[1768815565449,0.010752,93053.0,93038.0,0.0097502]
[1768815565754,0.02303561,93052.0,93041.0,0.010753]
[1768815565945,0.0968,93055.0,93041.0,0.010753]
[1768815566144,0.02303543,93054.0,93039.0,0.010754]
[1768815566348,0.02303543,93053.0,93039.0,0.010754]
[1768815566543,0.11748877,93055.0,93039.0,0.010754]
[1768815566749,0.02303657,93054.0,93039.0,0.010754]
[1768815566949,0.02303657,93053.0,93039.0,0.010754]
[1768815567149,0.02068877,93055.0,93039.0,0.010754]
[1768815567349,0.02303652,93054.0,93039.0,0.010754]
[1768815567555,0.02303652,93053.0,93039.0,0.010754]
[1768815567753,0.02068877,93055.0,93039.0,0.010754]
[1768815567955,0.02303755,93054.0,93039.0,0.010754]
[1768815568152,0.02303755,93053.0,93039.0,0.010754]
[1768815568457,0.00993677,93055.0,93041.0,0.010753]
[1768815568655,0.02303922,93054.0,93038.0,0.0097502]
[1768815568957,0.02303922,93053.0,93039.0,0.010754]
[1768815569158,0.00993677,93054.0,93041.0,0.010753]
[1768815569360,0.02303944,93053.0,93041.0,0.010753]
[1768815569563,0.02303944,93052.0,93041.0,0.010753]
[1768815569858,0.00993677,93054.0,93041.0,0.010753]
[1768815570159,0.02304128,93053.0,93041.0,0.010753]
[1768815570362,0.02304128,93052.0,93041.0,0.010753]
[1768815570960,0.03379328,93052.0,93037.0,0.010754]
[1768815571260,0.00993677,93052.0,93039.0,0.010754]
[1768815571861,0.00993677,93052.0,93036.0,0.010754]
[1768815572060,0.010752,93051.0,93035.0,0.010754]
[1768815572257,0.00993677,93048.0,93033.0,0.0097502]
[1768815572462,0.00993677,93048.0,93032.0,0.010754]
[1768815572962,0.00993677,93048.0,93034.0,0.010754]
[1768815574465,0.00993677,93048.0,93036.0,0.010754]
[1768815576669,0.02068977,93048.0,93033.0,0.010754]
[1768815577083,0.00993677,93048.0,93033.0,0.010754]
[1768815577266,0.14432283,93050.0,93035.0,0.010754]
[1768815577467,0.00993677,93049.0,93032.0,0.010754]
[1768815577666,0.00993677,93048.0,93032.0,0.010754]
[1768815577965,0.00993677,93048.0,93034.0,0.010754]
[1768815578470,0.00993677,93048.0,93031.0,0.107554]
[1768815578669,0.00993677,93048.0,93033.0,0.010754]
[1768815579972,0.010753,93047.0,93031.0,0.0968]
[1768815580270,0.00971919,93046.0,93031.0,0.0968]
[1768815580470,0.00971919,93049.0,93032.0,0.010754]
[1768815582761,0.00971919,93049.0,93034.0,0.010754]
[1768815583570,0.00971919,93049.0,93036.0,0.010754]
[1768815583966,0.00971919,93053.0,93031.0,0.01031038]
[1768815584162,0.00971919,93053.0,93030.0,0.14448401]
[1768815584163,0.02307272,93052.0,93038.0,0.010754]
[1768815584364,0.02307272,93051.0,93038.0,0.010754]
[1768815584670,0.02307272,93050.0,93038.0,0.010754]
[1768815584872,0.00971919,93053.0,93038.0,0.010754]
[1768815585170,0.02307313,93052.0,93038.0,0.010754]
[1768815585373,0.02307313,93051.0,93038.0,0.010754]
[1768815585671,0.00971919,93053.0,93038.0,0.010754]
[1768815585872,0.0230733,93052.0,93038.0,0.010754]
[1768815586062,0.0230733,93051.0,93038.0,0.010754]
[1768815586263,0.00971919,93053.0,93038.0,0.010754]
[1768815586572,0.03279298,93052.0,93038.0,0.010754]
[1768815586773,0.00971919,93050.0,93038.0,0.010754]
[1768815587364,0.02047119,93050.0,93031.0,0.01031038]
[1768815587561,0.00971919,93050.0,93035.0,0.010754]
[1768815588372,0.00971919,93050.0,93037.0,0.010754]
[1768815589266,0.010752,93049.0,93033.0,0.010754]
[1768815590975,0.00971919,93045.0,93031.0,0.0968]
[1768815592375,0.010753,93044.0,93031.0,0.0968]
[1768815592577,0.00971919,93043.0,93031.0,0.0968]
[1768815592784,0.00971919,93043.0,93032.0,0.010754]
[1768815593970,0.00971919,93043.0,93031.0,0.0968]
[1768815595265,0.00940339,93042.0,93031.0,0.0968]
[1768815595478,0.01992423,93041.0,93031.0,0.0868]
[1768815595778,0.00940339,93040.0,93031.0,0.0768]
[1768815596978,0.010754,93039.0,93030.0,0.00016118]
[1768815597281,0.00940339,93038.0,93024.0,0.09916498]
[1768815597979,0.00940339,93038.0,93025.0,0.010755]
[1768815598184,0.00940339,93038.0,93027.0,0.010755]
[1768815599084,0.14432283,93041.0,93027.0,0.010755]
[1768815599273,0.03067723,93042.0,93027.0,0.010755]
[1768815600084,0.00940339,93041.0,93027.0,0.010755]
[1768815600276,0.010754,93040.0,93024.0,0.10991998]
[1768815600476,0.15507683,93040.0,93024.0,0.10991998]
[1768815600884,0.010754,93038.0,93024.0,0.09916498]
[1768815601084,0.02015739,93036.0,93024.0,0.09916498]
[1768815601283,0.00940339,93029.0,93009.0,0.01326692]
[1768815601483,0.010755,93025.0,93010.0,0.107557]
[1768815601985,0.00940339,93027.0,93010.0,0.10770154]
[1768815602176,0.00940339,93032.0,93011.0,0.01090154]
[1768815602576,0.00940339,93037.0,93011.0,0.01090154]
[1768815602878,0.02015739,93037.0,93015.0,0.01090154]
[1768815603584,0.02015739,93037.0,93020.0,0.010756]
[1768815603786,0.02015739,93037.0,93022.0,0.010755]
[1768815605976,0.02015739,93037.0,93019.0,0.010756]
[1768815606176,0.00940339,93036.0,93019.0,0.010756]
[1768815606476,0.010754,93035.0,93019.0,0.010756]
[1768815606786,0.010755,93031.0,93015.0,0.02165754]
[1768815607187,0.010755,93028.0,93010.0,0.12046577]
[1768815607386,0.010755,93028.0,93011.0,0.01090154]
[1768815608385,0.15372622,93030.0,93013.0,0.010757]
[1768815609087,0.16448122,93030.0,93013.0,0.010757]
[1768815609683,0.15372622,93030.0,93016.0,0.010756]
[1768815609881,0.010754,93035.0,93011.0,0.01090154]
[1768815610083,0.010754,93035.0,93014.0,0.01090154]
[1768815611085,0.010754,93035.0,93020.0,0.010756]
[1768815612087,0.010754,93035.0,93017.0,0.02165754]
[1768815612388,0.02015739,93035.0,93017.0,0.02165754]
[1768815612688,0.010754,93033.0,93017.0,0.02165754]
[1768815613788,0.010754,93033.0,93019.0,0.010756]
[1768815613984,0.00940339,93035.0,93019.0,0.010756]
[1768815615389,0.010754,93034.0,93019.0,0.010756]
[1768815616982,0.14432283,93030.0,93019.0,0.010756]
[1768815617287,0.00940339,93029.0,93019.0,0.010756]
[1768815617689,0.00940339,93029.0,93012.0,0.01090154]
[1768815617888,0.00940339,93029.0,93017.0,0.010756]
[1768815619076,0.00940339,93029.0,93014.0,0.010756]
[1768815619282,0.02015839,93029.0,93012.0,0.01090154]
[1768815619483,0.00940339,93029.0,93012.0,0.01090154]
[1768815620491,0.010755,93027.0,93012.0,0.01090154]
[1768815621178,0.010755,93027.0,93010.0,0.0968]
[1768815621179,0.010755,93025.0,93010.0,0.0968]
[1768815621578,0.01992423,93013.0,92995.0,0.07735955]
[1768815621784,0.01992423,93013.0,92993.0,0.15231106]
[1768815621785,0.14432283,93011.0,92996.0,0.010759]
[1768815622077,0.00940339,93016.0,92997.0,0.01090154]
[1768815622282,0.107556,93019.0,93001.0,0.02165954]
[1768815622482,0.00016127,93013.0,93001.0,0.02165954]
[1768815625382,0.00016127,93013.0,93003.0,0.010758]
[1768815629600,0.0968,93019.0,93004.0,0.01112486]
[1768815630189,0.10672038,93019.0,93004.0,0.01112486]
[1768815631394,0.00992038,93022.0,93005.0,0.02188186]
[1768815631599,0.01311998,93024.0,93008.0,0.010757]
[1768815631800,0.0968,93023.0,93008.0,0.010757]
[1768815632200,0.10672038,93023.0,93008.0,0.010757]
[1768815632400,0.010756,93022.0,93005.0,0.02188186]
[1768815632601,0.010756,93022.0,93007.0,0.010757]
[1768815632792,0.00992038,93021.0,93007.0,0.010757]
[1768815633689,0.00992038,93021.0,93005.0,0.01112486]
[1768815634094,0.00992038,93021.0,93006.0,0.010757]
[1768815636000,0.010756,93022.0,93006.0,0.010757]
[1768815636201,0.00236498,93024.0,93010.0,0.02188186]
[1768815636405,0.09916498,93024.0,93010.0,0.02188186]
[1768815636901,0.10991998,93024.0,93010.0,0.02188186]
[1768815637110,0.10991998,93024.0,93010.0,0.01112486]
[1768815637898,0.09916498,93024.0,93013.0,0.010756]
[1768815638098,0.00236498,93024.0,93010.0,0.01112486]
[1768815638508,0.00236487,93029.0,93018.0,0.02188086]
[1768815638806,0.0968,93035.0,93020.0,0.010756]
[1768815639007,0.02391451,93034.0,93020.0,0.010756]
[1768815639206,0.02391451,93033.0,93020.0,0.010756]
[1768815639408,0.02391451,93032.0,93018.0,0.01112486]
[1768815639708,0.11727534,93035.0,93018.0,0.01112486]
[1768815639908,0.03363696,93034.0,93019.0,0.010756]
[1768815640203,0.02391562,93033.0,93018.0,0.01112486]
[1768815640510,0.10652134,93041.0,93027.0,0.010755]
[1768815641110,0.10652134,93041.0,93023.0,0.01192358]
[1768815641111,0.00972134,93040.0,93024.0,0.010755]
[1768815642605,0.00972134,93040.0,93026.0,0.010755]
[1768815642805,0.00972134,93040.0,93023.0,0.01208485]
[1768815643201,0.00972134,93040.0,93024.0,0.010755]
[1768815643508,0.02047534,93040.0,93024.0,0.010755]
[1768815644508,0.00972134,93040.0,93023.0,0.01208485]
[1768815644703,0.00236447,93044.0,93029.0,0.010755]
[1768815644904,0.01311747,93044.0,93029.0,0.01192358]
[1768815645106,0.02283881,93044.0,93026.0,0.010755]
[1768815645612,0.00972134,93043.0,93026.0,0.010755]
[1768815646300,0.02047434,93042.0,93026.0,0.010755]
[1768815646700,0.00972134,93042.0,93028.0,0.010755]
[1768815648009,0.00972134,93042.0,93025.0,0.010755]
[1768815649309,0.00972134,93042.0,93027.0,0.010755]
[1768815649611,0.00972134,93042.0,93027.0,0.010655]
[1768815651608,0.010753,93041.0,93025.0,0.010755]
[1768815651914,0.00972134,93042.0,93024.0,0.02267858]
[1768815651915,0.010754,93039.0,93024.0,0.02267858]
[1768815652114,0.010754,93039.0,93024.0,0.01192358]
[1768815652306,0.010754,93037.0,93024.0,0.01192358]
[1768815652806,0.00972134,93039.0,93024.0,0.01192358]
[1768815653014,0.00972134,93039.0,93023.0,0.00016127]
[1768815653015,0.010754,93035.0,93023.0,0.00016127]
[1768815653813,0.010754,93033.0,93023.0,0.00016127]
[1768815654111,0.00936629,93027.0,93018.0,0.0968]
[1768815654907,0.010755,93026.0,93011.0,0.107557]
[1768815655303,0.010755,93024.0,93011.0,0.0968]
[1768815655506,0.00936629,93023.0,93011.0,0.0968]
[1768815656910,0.00936629,93023.0,93012.0,0.010757]
[1768815658611,0.010755,93026.0,93012.0,0.010757]
[1768815659623,0.02012129,93026.0,93011.0,0.0968]
[1768815659917,0.00936629,93025.0,93011.0,0.0968]
[1768815660408,0.00936629,93025.0,93011.0,0.107557]
[1768815661114,0.010755,93024.0,93011.0,0.0968]
[1768815662815,0.00936629,93025.0,93011.0,0.107557]
[1768815663010,0.01146274,93028.0,93015.0,0.010756]
[1768815663210,0.00936629,93029.0,93015.0,0.010756]
[1768815663608,0.02012129,93029.0,93015.0,0.010756]
[1768815663811,0.010755,93027.0,93012.0,0.010757]
[1768815668222,0.00936629,93029.0,93014.0,0.010756]
[1768815669111,0.010755,93028.0,93014.0,0.010756]
[1768815669515,0.010755,93028.0,93011.0,0.107557]
[1768815669820,0.010755,93026.0,93011.0,0.107557]
[1768815670721,0.00936629,93029.0,93011.0,0.0968]
[1768815671021,0.010755,93024.0,93011.0,0.0968]
[1768815672823,0.010755,93024.0,93012.0,0.010757]
[1768815673523,0.010755,93027.0,93014.0,0.010756]
[1768815674821,0.010756,93017.0,92990.0,0.04310315]
[1768815675018,0.010757,93013.0,92989.0,0.00236588]
[1768815675215,0.12076092,93012.0,92989.0,0.00236588]
[1768815675412,0.0968,93012.0,92989.0,0.00236588]
[1768815675616,0.010758,93003.0,92989.0,0.00236588]
[1768815676023,0.010758,93001.0,92989.0,0.00236588]
[1768815676821,0.00936629,93000.0,92989.0,0.00236588]
[1768815677221,0.010758,92999.0,92989.0,0.00236588]
[1768815677425,0.00936629,93000.0,92989.0,0.00236588]
[1768815678027,0.00936629,93003.0,92989.0,0.01312488]
[1768815680227,0.00936629,93003.0,92989.0,0.00236588]
[1768815681321,0.00936629,93003.0,92990.0,0.010759]
[1768815681518,0.00936629,93003.0,92989.0,0.00236588]
[1768815681718,0.010758,93002.0,92989.0,0.00236588]
[1768815681924,0.02012429,93002.0,92989.0,0.00236588]
[1768815682135,0.00936629,93002.0,92989.0,0.01312488]
[1768815682728,0.00936629,93002.0,92989.0,0.00236588]
[1768815683033,0.010758,93001.0,92989.0,0.00236588]
[1768815683228,0.00925865,93000.0,92989.0,0.00236588]
[1768815683731,0.01616015,92986.0,92966.0,0.07735955]
[1768815684031,0.00925865,92986.0,92968.0,0.010762]
[1768815684531,0.09696127,92987.0,92969.0,0.01901105]
[1768815684730,0.010758,93001.0,92981.0,0.01664466]
[1768815684934,0.010758,92999.0,92981.0,0.01664466]
[1768815685232,0.00925865,92997.0,92981.0,0.01664466]
[1768815685633,0.00925865,92997.0,92980.0,0.01076]
[1768815687231,0.00925865,92997.0,92979.0,0.01664466]
[1768815688630,0.00925865,92997.0,92984.0,0.01076]
[1768815688829,0.09684,92996.0,92984.0,0.01076]
[1768815689040,0.09684,92996.0,92986.0,0.01076]
[1768815689333,0.00925865,92997.0,92986.0,0.01076]
[1768815689534,0.00925865,93009.0,92990.0,0.010759]
[1768815689742,0.10609865,93008.0,92990.0,0.02740366]
[1768815689944,0.10609865,93008.0,92992.0,0.010759]
[1768815690136,0.09684,93008.0,92990.0,0.01664466]
[1768815690328,0.09684,93008.0,92999.0,0.01664466]
[1768815690724,0.00925865,93016.0,92999.0,0.01664466]
[1768815691031,0.09684,93015.0,93005.0,0.010757]
[1768815691233,0.09684,93015.0,93002.0,0.010758]
[1768815693843,0.00925865,93022.0,93004.0,0.02740266]
[1768815694041,0.09684,93021.0,93004.0,0.02740266]
[1768815694242,0.10609865,93021.0,93004.0,0.02740266]
[1768815694443,0.00925865,93020.0,93004.0,0.02740266]
[1768815696832,0.00925865,93019.0,93004.0,0.010758]
[1768815697840,0.00925865,93019.0,93001.0,0.02740266]
[1768815698252,0.00925865,93018.0,93001.0,0.02740266]
[1768815700049,0.00917948,93016.0,93001.0,0.02740266]
[1768815700250,0.010756,93015.0,92999.0,0.00016127]
[1768815700551,0.00236538,93009.0,92999.0,0.00016127]
[1768815700856,0.00236538,93009.0,92999.0,0.01091927]
[1768815702662,0.00236538,93009.0,93001.0,0.010758]
[1768815702853,0.14441283,93020.0,93006.0,0.010757]
[1768815703054,0.14441283,93020.0,93008.0,0.00839151]
[1768815704761,0.15359231,93020.0,93008.0,0.00839151]
[1768815706552,0.15359231,93020.0,93011.0,0.010757]
[1768815708363,0.15359231,93020.0,93013.0,0.010757]
[1768815708561,0.00917948,93020.0,93013.0,0.010757]
[1768815710067,0.00917948,93020.0,93010.0,0.010757]
[1768815710569,0.00917948,93020.0,93012.0,0.010757]
[1768815710864,0.00917948,93018.0,93005.0,0.010757]
[1768815711465,0.00917948,93017.0,93002.0,0.010758]
[1768815712566,0.00917948,93017.0,93004.0,0.010758]
[1768815713255,0.00917948,93017.0,93002.0,0.010758]
[1768815713769,0.00917948,93017.0,93004.0,0.010758]
[1768815713964,0.09684,93022.0,93001.0,0.03191247]
[1768815714169,0.02487918,93021.0,93004.0,0.03191247]
[1768815714372,0.02487918,93020.0,93004.0,0.03191247]
[1768815714566,0.02487918,93019.0,93004.0,0.03191247]
[1768815714765,0.02487918,93018.0,93004.0,0.03191247]
[1768815714969,0.10662945,93022.0,93004.0,0.03191247]
[1768815715172,0.0346739,93021.0,93004.0,0.03191247]
[1768815715468,0.02488445,93020.0,93009.0,0.010757]
[1768815715674,0.02488445,93020.0,93006.0,0.010757]
[1768815715866,0.0346739,93020.0,93006.0,0.010757]
[1768815716168,0.02488445,93019.0,93006.0,0.010757]
[1768815717570,0.0346739,93019.0,93006.0,0.010757]
[1768815717771,0.02488445,93018.0,93006.0,0.010757]
[1768815717970,0.02488445,93017.0,93005.0,0.010757]
[1768815718174,0.02491978,93016.0,93005.0,0.010757]
[1768815718362,0.00978945,93019.0,93005.0,0.010757]
[1768815718559,0.03470907,93018.0,93005.0,0.010757]
[1768815718866,0.02491962,93017.0,93005.0,0.010757]
[1768815719072,0.02491962,93016.0,93005.0,0.010757]
[1768815719273,0.02491962,93015.0,93005.0,0.010757]
[1768815719471,0.02491962,93014.0,93005.0,0.010757]
[1768815719672,0.00978945,93018.0,93005.0,0.010757]
[1768815719875,0.02493289,93017.0,93007.0,0.010757]
[1768815720172,0.02493289,93016.0,93007.0,0.010757]
[1768815720962,0.02493289,93016.0,93004.0,0.010758]
[1768815721767,0.010756,93014.0,92999.0,0.00016127]
[1768815721977,0.00978945,93012.0,92999.0,0.00016127]
[1768815722176,0.14441283,93010.0,92999.0,0.00016127]
[1768815722579,0.04119596,93004.0,92982.0,0.03191247]
[1768815722875,0.00978945,93000.0,92982.0,0.03191247]
[1768815723071,0.00016127,93014.0,92991.0,0.03191247]
[1768815723072,0.00978945,93009.0,92991.0,0.03191247]
[1768815723387,0.010757,93013.0,92997.0,0.010758]
[1768815723388,0.02054645,93013.0,92997.0,0.010758]
[1768815723579,0.12178155,93012.0,92997.0,0.010758]
[1768815723779,0.02494155,93011.0,92994.0,0.03191247]
[1768815723985,0.09700127,93014.0,93004.0,0.010758]
[1768815724281,0.02494077,93013.0,93004.0,0.010758]
[1768815724481,0.02494077,93012.0,93004.0,0.010758]
[1768815724669,0.10679072,93014.0,93004.0,0.010758]
[1768815724869,0.03472959,93013.0,93004.0,0.010758]
[1768815725169,0.02494014,93012.0,93004.0,0.010758]
[1768815725376,0.00016127,93014.0,93004.0,0.010758]
[1768815725576,0.00016127,93014.0,93000.0,0.14441283]
[1768815725577,0.02493969,93013.0,93002.0,0.03191247]
[1768815725776,0.00016127,93014.0,93007.0,0.010757]
[1768815726376,0.00016127,93014.0,93003.0,0.010758]
[1768815726875,0.00016127,93014.0,93005.0,0.010757]
[1768815727877,0.00016127,93014.0,93006.0,0.010757]
[1768815728078,0.00016127,93014.0,93003.0,0.010758]
[1768815729370,0.00016127,93014.0,93005.0,0.010757]
[1768815732584,0.0248836,93013.0,93005.0,0.010757]
[1768815732784,0.02488315,93012.0,93005.0,0.010757]
[1768815732981,0.00016127,93014.0,93005.0,0.010757]
[1768815733182,0.02488303,93013.0,93005.0,0.010757]
[1768815733383,0.02488303,93012.0,93005.0,0.010757]
[1768815733578,0.00995072,93014.0,93005.0,0.010757]
[1768815733782,0.00978945,93012.0,92990.0,0.24125283]
[1768815733986,0.00978945,93012.0,92990.0,0.2731653]
[1768815734278,0.00978945,93012.0,92991.0,0.03191247]
[1768815735188,0.00978945,93012.0,93000.0,0.010758]
[1768815735983,0.00978945,93012.0,92997.0,0.010758]
[1768815736690,0.00978945,93012.0,92999.0,0.010758]
[1768815736982,0.00978945,93012.0,93003.0,0.010758]
[1768815737188,0.00016127,93014.0,92996.0,0.03191247]
[1768815737384,0.02487381,93013.0,92996.0,0.03191247]
[1768815737583,0.02487381,93012.0,93006.0,0.010757]
[1768815737776,0.00016127,93014.0,93006.0,0.010757]
[1768815737975,0.02487163,93013.0,93006.0,0.010757]
[1768815738179,0.02487163,93012.0,93006.0,0.010757]
[1768815738388,0.00016127,93014.0,93006.0,0.010757]
[1768815738586,0.02487141,93013.0,93006.0,0.010757]
[1768815738784,0.02487141,93012.0,93006.0,0.010757]
[1768815738984,0.00016127,93014.0,93006.0,0.010757]
[1768815739184,0.02487129,93013.0,93006.0,0.010757]
[1768815739387,0.02487129,93012.0,93006.0,0.010757]
[1768815739592,0.00016127,93014.0,93006.0,0.010757]
[1768815739890,0.02486824,93013.0,93006.0,0.010757]
[1768815740080,0.02486824,93012.0,93006.0,0.010757]
[1768815740276,0.00016127,93014.0,93002.0,0.010758]
[1768815740489,0.02478839,93013.0,93002.0,0.010758]
[1768815740690,0.02478839,93012.0,93004.0,0.010758]
[1768815740887,0.00995072,93014.0,93004.0,0.010758]
[1768815741090,0.02478801,93013.0,93004.0,0.010758]
[1768815741284,0.02478801,93012.0,93004.0,0.010758]
[1768815741485,0.00995072,93014.0,93004.0,0.010758]
[1768815741684,0.02478736,93013.0,93004.0,0.010758]
[1768815741887,0.00995072,93014.0,93004.0,0.010758]
[1768815741888,0.02478736,93012.0,93004.0,0.010758]
[1768815742087,0.00995072,93014.0,93004.0,0.010758]
[1768815742287,0.02478734,93013.0,93004.0,0.010758]
[1768815742488,0.02478734,93012.0,93006.0,0.010757]
[1768815742689,0.00995072,93014.0,93006.0,0.010757]
[1768815742891,0.02478505,93013.0,93006.0,0.010757]
[1768815743091,0.02478505,93012.0,93006.0,0.010757]
[1768815743294,0.00954388,93013.0,93006.0,0.010757]
[1768815743493,0.0247852,93012.0,93006.0,0.010757]
[1768815743692,0.00016127,93014.0,93006.0,0.010757]
[1768815743894,0.02478521,93013.0,93006.0,0.010757]
[1768815744088,0.02478521,93012.0,93006.0,0.010757]
[1768815744289,0.00016127,93014.0,93006.0,0.010757]
[1768815744490,0.02478455,93013.0,93003.0,0.010758]
[1768815744696,0.02478455,93012.0,93003.0,0.010758]
[1768815744895,0.00016127,93014.0,93003.0,0.010758]
[1768815745195,0.03432765,93013.0,93003.0,0.010758]
[1768815745396,0.02478377,93012.0,93003.0,0.010758]
[1768815746994,0.02029888,93026.0,93007.0,0.04145083]
[1768815747197,0.107596,93023.0,93007.0,0.04145083]
[1768815747590,0.11713988,93023.0,93007.0,0.04145083]
[1768815747786,0.107596,93023.0,93007.0,0.04145083]
[1768815747990,0.00954388,93022.0,93007.0,0.04145083]
[1768815748196,0.010756,93021.0,93007.0,0.04145083]
[1768815748396,0.02029988,93021.0,93007.0,0.04145083]
[1768815748791,0.00954388,93021.0,93007.0,0.04145083]
[1768815748987,0.09684,93023.0,93008.0,0.010757]
[1768815750196,0.02266386,93024.0,93010.0,0.010757]
[1768815751699,0.00236498,93024.0,93010.0,0.18586366]
[1768815752004,0.09684,93027.0,93011.0,0.04145083]
[1768815752192,0.10638388,93027.0,93011.0,0.04145083]
[1768815752695,0.10638388,93027.0,93014.0,0.010756]
[1768815752893,0.10638388,93027.0,93016.0,0.010756]
[1768815753297,0.00954388,93035.0,93018.0,0.04145083]
[1768815753490,0.09684,93037.0,93022.0,0.010756]
[1768815754094,0.00954388,93038.0,93022.0,0.010756]
[1768815754303,0.00954388,93038.0,93024.0,0.010755]
[1768815754491,0.00954388,93038.0,93024.0,0.0225184]
[1768815754692,0.00954388,93038.0,93026.0,0.010755]
[1768815755193,0.24125283,93040.0,93026.0,0.010755]
[1768815755493,0.00954388,93039.0,93026.0,0.010755]
[1768815755896,0.00236447,93044.0,93030.0,0.010755]
[1768815757805,0.00236447,93044.0,93032.0,0.010754]
[1768815757994,0.09916436,93049.0,93032.0,0.010754]
[1768815758304,0.010753,93048.0,93031.0,0.04145083]
[1768815758801,0.00236436,93049.0,93031.0,0.04145083]
[1768815759005,0.02468386,93048.0,93038.0,0.010754]
[1768815759305,0.00236436,93049.0,93038.0,0.010754]
[1768815759306,0.02468386,93047.0,93038.0,0.010754]
[1768815759598,0.00995522,93057.0,93042.0,0.010753]
[1768815759798,0.02467619,93056.0,93042.0,0.010753]
[1768815760000,0.02467619,93055.0,93040.0,0.04327242]
[1768815760308,0.03463141,93055.0,93040.0,0.04327242]
[1768815760500,0.02467619,93054.0,93040.0,0.04327242]
[1768815760798,0.02467619,93053.0,93040.0,0.04327242]
[1768815760994,0.02467619,93052.0,93040.0,0.04327242]
[1768815761204,0.00995522,93055.0,93040.0,0.04327242]
[1768815761400,0.02465859,93054.0,93040.0,0.04327242]
[1768815761605,0.02465859,93053.0,93040.0,0.04327242]
[1768815761913,0.00995522,93055.0,93041.0,0.010753]
[1768815762104,0.02465841,93054.0,93043.0,0.010753]
[1768815762298,0.00995522,93055.0,93043.0,0.010753]
[1768815762603,0.02465163,93054.0,93043.0,0.010753]
[1768815762908,0.00995522,93055.0,93043.0,0.010753]
[1768815763107,0.0246516,93054.0,93040.0,0.05402542]
[1768815763307,0.00995522,93055.0,93040.0,0.05402542]
[1768815763508,0.00995522,93055.0,93042.0,0.010753]
[1768815763909,0.0968,93059.0,93042.0,0.010753]
[1768815763910,0.00995522,93058.0,93042.0,0.010753]
[1768815764700,0.010752,93057.0,93040.0,0.05402542]
[1768815764900,0.03459309,93056.0,93040.0,0.05402542]
[1768815765102,0.03459309,93055.0,93040.0,0.05402542]
[1768815765308,0.00995522,93055.0,93040.0,0.05402542]
[1768815765813,0.10675522,93059.0,93044.0,0.010753]
[1768815766000,0.02463281,93058.0,93044.0,0.010753]
[1768815766201,0.0968,93059.0,93044.0,0.010753]